[Event "XIX Najdorf Memorial 2019"]
[Site "Warsaw"]
[Date "2019.07.09"]
[Round "4.29"]
[White "Jacobsen, Mikkel Manosri"]
[Black "Shkliar, Boris"]
[Result "0-1"]
[ECO "A04"]
[WhiteElo "2343"]
[BlackElo "2160"]
[Annotator "NA"]
[PlyCount "72"]
[EventDate "2019.07.06"]
[EventType "swiss"]
[EventCountry "POL"]
[SourceTitle "playchess.com"]
[Source "ChessBase"]
[SourceQuality "1"]
[TimeControl "40/5400+30:1800+30"]

1. Nf3 {[%emt 0:09:12]} f5 {[%emt 0:00:04]} 2. d4 {[%emt 0:00:16]} Nf6 {[%emt 0:00:14]} 3. g3 {[%emt 0:00:36]} g6 {[%emt 0:00:15]} 4. Bg2 {[%emt 0:00:05]} Bg7 {[%emt 0:00:06]} 5. O-O {[%emt 0:00:06]} O-O {[%emt 0:00:10]} 6. c4 {[%emt 0:00:48]} d6 {[%emt 0:00:15]} 7. Qc2 {[%emt 0:00:38]} Qe8 {[%emt 0:01:01]} 8. Nc3 {[%emt 0:00:20]} h6 {[%emt 0:03:57]} 9. b3 {[%emt 0:09:32]} e5 {[%emt 0:02:27]} 10. dxe5 {[%emt 0:00:28]} dxe5 {[%emt 0:00:09]} 11. Ba3 {[%emt 0:01:35]} Rf7 {[%emt 0:01:12]} 12. Nh4 {[%emt 0:01:31]} Kh7 {[%emt 0:21:02]} 13. e4 {[%emt 0:02:01]} f4 {[%emt 0:24:27]} 14. gxf4 {[%emt 0:10:15]} Nh5 {[%emt 0:03:11]} 15. f5 {[%emt 0:01:04]} gxf5 {[%emt 0:08:19]} 16. exf5 {[%emt 0:00:34]} Bf6 {[%emt 0:00:22]} 17. Ng6 {[%emt 0:00:54]} Nc6 {[%emt 0:07:17]} 18. Ne2 {[%emt 0:13:41]} Ng7 {[%emt 0:08:51]} 19. Be4 {[%emt 0:00:23]} Bxf5 {[%emt 0:02:13]} 20. Bxf5 {[%emt 0:00:07]} Nxf5 {[%emt 0:00:08]} 21. Nf8+ {[%emt 0:00:26]} Kg8 {[%emt 0:04:04]} 22. Ng3 {[%emt 0:10:03]} Nh4 {[%emt 0:06:44]} 23. Qe4 {[%emt 0:03:38]} Rxf8 {[%emt 0:01:59]} 24. Bxf8 {[%emt 0:00:05]} Qxf8 {[%emt 0:00:09]} 25. Kh1 {[%emt 0:00:08]} Bg5 {[%emt 0:00:55]} 26. f4 {[%emt 0:02:56]} exf4 {[%emt 0:00:01]} 27. Nh5 {[%emt 0:00:08]} f3 {[%emt 0:01:13]} 28. Rad1 {[%emt 0:04:41]} Re8 {[%emt 0:00:39]} 29. Qg4 {[%emt 0:01:46]} Ne5 {[%emt 0:00:17]} 30. Qe4 {[%emt 0:00:10]} Qf7 {[%emt 0:00:28]} 31. Ng3 {[%emt 0:00:13]} c6 {[%emt 0:01:04]} 32. Rd6 {[%emt 0:00:14]} Kg7 {[%emt 0:00:32]} 33. Qd4 {[%emt 0:00:40]} Kh7 {[%emt 0:01:07]} 34. Qxa7 {[%emt 0:01:47]} Re7 {[%emt 0:00:01]} 35. Ne4 {[%emt 0:03:13]} Qf4 {[%emt 0:00:26]} 36. Nxg5+ {[%emt 0:00:26]} Qxg5 {[%emt 0:00:08]} 0-1

[Event "XIX Najdorf Memorial 2019"]
[Site "Warsaw"]
[Date "2019.07.09"]
[Round "4.30"]
[White "Pettersson, Alexander"]
[Black "Godzwon, Iwo"]
[Result "0-1"]
[ECO "E10"]
[WhiteElo "2083"]
[BlackElo "2285"]
[Annotator "NA"]
[PlyCount "102"]
[EventDate "2019.07.06"]
[EventType "swiss"]
[EventCountry "POL"]
[SourceTitle "playchess.com"]
[Source "ChessBase"]
[SourceQuality "1"]
[TimeControl "40/5400+30:1800+30"]

1. d4 {[%emt 0:09:41]} Nf6 {[%emt 0:00:00]} 2. c4 {[%emt 0:00:17]} e6 {[%emt 0:00:00]} 3. Nf3 {[%emt 0:00:21]} c5 {[%emt 0:00:00]} 4. d5 {[%emt 0:01:04]} b5 {[%emt 0:00:00]} 5. Bg5 {[%emt 0:05:10]} exd5 {[%emt 0:00:24]} 6. cxd5 {[%emt 0:00:38]} h6 {[%emt 0:00:42]} 7. Bxf6 {[%emt 0:05:01]} Qxf6 {[%emt 0:00:04]} 8. Qc2 {[%emt 0:00:20]} d6 {[%emt 0:01:45]} 9. e4 {[%emt 0:01:02]} a6 {[%emt 0:01:14]} 10. a4 {[%emt 0:01:02]} b4 {[%emt 0:00:04]} 11. Be2 {[%emt 0:01:13]} Nd7 {[%emt 0:10:55]} 12. Nbd2 {[%emt 0:03:54]} g5 {[%emt 0:01:22]} 13. Nc4 {[%emt 0:03:56]} Bg7 {[%emt 0:00:21]} 14. a5 {[%emt 0:03:47]} O-O {[%emt 0:01:45]} 15. O-O {[%emt 0:00:26]} Qe7 {[%emt 0:12:39]} 16. Rae1 {[%emt 0:06:07]} Bb7 {[%emt 0:03:11]} 17. Nfd2 {[%emt 0:02:21]} Ne5 {[%emt 0:03:33]} 18. f4 {[%emt 0:05:53]} Ng6 {[%emt 0:02:44]} 19. fxg5 {[%emt 0:05:12]} hxg5 {[%emt 0:01:10]} 20. Bg4 {[%emt 0:01:08]} Ne5 {[%emt 0:03:47]} 21. Bf5 {[%emt 0:03:43]} Nxc4 {[%emt 0:01:55]} 22. Nxc4 {[%emt 0:00:11]} Bd4+ {[%emt 0:00:04]} 23. Kh1 {[%emt 0:00:23]} Kg7 {[%emt 0:01:02]} 24. Qd1 {[%emt 0:05:30]} Rad8 {[%emt 0:03:46]} 25. Qg4 {[%emt 0:04:31]} Rh8 {[%emt 0:03:25]} 26. g3 {[%emt 0:00:36]} f6 {[%emt 0:10:25]} 27. Be6 {[%emt 0:06:34]} Bc8 {[%emt 0:04:55]} 28. Bxc8 {[%emt 0:01:59]} Rxc8 {[%emt 0:00:53]} 29. Rf5 {[%emt 0:00:44]} Rcd8 {[%emt 0:04:54]} 30. Ref1 {[%emt 0:01:05]} Rh6 {[%emt 0:03:06]} 31. Kg2 {[%emt 0:01:38]} Re8 {[%emt 0:00:36]} 32. Re1 {[%emt 0:04:00]} Rg6 {[%emt 0:01:03]} 33. b3 {[%emt 0:02:39]} Rh8 {[%emt 0:07:15]} 34. Rh1 {[%emt 0:03:49]} Rh4 {[%emt 0:02:47]} 35. gxh4 {[%emt 0:00:43]} gxh4 {[%emt 0:00:01]} 36. Qxg6+ {[%emt 0:00:33]} Kxg6 {[%emt 0:00:01]} 37. Kf3 {[%emt 0:00:28]} Qf8 {[%emt 0:02:40]} 38. h3 {[%emt 0:04:35]} Qh6 {[%emt 0:00:46]} 39. Re1 {[%emt 0:01:02]} Kf7 {[%emt 0:03:56]} 40. Kg4 {[%emt 0:00:00]} Qg6+ {[%emt 0:00:00]} 41. Kf3 {[%emt 0:10:23]} Qg3+ {[%emt 0:00:27]} 42. Ke2 {[%emt 0:00:21]} Qxb3 {[%emt 0:00:41]} 43. Nxd6+ {[%emt 0:03:58]} Ke7 {[%emt 0:00:04]} 44. Nc8+ {[%emt 0:01:43]} Kd8 {[%emt 0:00:05]} 45. Nb6 {[%emt 0:01:02]} Qe3+ {[%emt 0:00:07]} 46. Kf1 {[%emt 0:02:48]} Qxh3+ {[%emt 0:00:02]} 47. Ke2 {[%emt 0:00:13]} Qg2+ {[%emt 0:00:21]} 48. Kd1 {[%emt 0:01:35]} b3 {[%emt 0:00:18]} 49. Re2 {[%emt 0:01:01]} Qg1+ {[%emt 0:00:09]} 50. Re1 {[%emt 0:00:56]} b2 {[%emt 0:00:12]} 51. Rxg1 {[%emt 0:01:19]} b1=Q+ {[%emt 0:00:05]} 0-1

[Event "XIX Najdorf Memorial 2019"]
[Site "Warsaw"]
[Date "2019.07.09"]
[Round "4.31"]
[White "Rakshitta Ravi"]
[Black "Bednarczyk, Damian"]
[Result "1-0"]
[ECO "B24"]
[WhiteElo "2112"]
[BlackElo "2256"]
[Annotator "NA"]
[PlyCount "81"]
[EventDate "2019.07.06"]
[EventType "swiss"]
[EventCountry "POL"]
[SourceTitle "playchess.com"]
[Source "ChessBase"]
[SourceQuality "1"]
[TimeControl "40/5400+30:1800+30"]

1. e4 {[%emt 0:00:00]} c5 {[%emt 0:00:00]} 2. Nc3 {[%emt 0:00:00]} Nc6 {[%emt 0:00:11]} 3. Bb5 {[%emt 0:00:09]} e6 {[%emt 0:00:09]} 4. Bxc6 {[%emt 0:00:10]} bxc6 {[%emt 0:00:17]} 5. d3 {[%emt 0:00:08]} Ne7 {[%emt 0:02:16]} 6. e5 {[%emt 0:08:37]} Ng6 {[%emt 0:01:00]} 7. f4 {[%emt 0:01:35]} Be7 {[%emt 0:09:34]} 8. Ne4 {[%emt 0:03:10]} Qc7 {[%emt 0:04:48]} 9. Nf3 {[%emt 0:02:08]} f6 {[%emt 0:01:31]} 10. exf6 {[%emt 0:02:04]} gxf6 {[%emt 0:00:10]} 11. f5 {[%emt 0:00:44]} exf5 {[%emt 0:09:33]} 12. Ng3 {[%emt 0:04:47]} d5 {[%emt 0:01:41]} 13. Qd2 {[%emt 0:17:03]} h5 {[%emt 0:04:45]} 14. Qf2 {[%emt 0:03:00]} Bd6 {[%emt 0:17:12]} 15. Ne2 {[%emt 0:03:26]} h4 {[%emt 0:07:22]} 16. Bd2 {[%emt 0:05:07]} Be6 {[%emt 0:02:02]} 17. O-O-O {[%emt 0:02:09]} Kd7 {[%emt 0:02:34]} 18. Rde1 {[%emt 0:01:51]} Rae8 {[%emt 0:06:34]} 19. Rhf1 {[%emt 0:03:21]} Qb8 {[%emt 0:04:45]} 20. Nfg1 {[%emt 0:06:12]} Ne5 {[%emt 0:07:22]} 21. h3 {[%emt 0:02:07]} d4 {[%emt 0:00:49]} 22. Kb1 {[%emt 0:09:27]} Qb5 {[%emt 0:01:49]} 23. Nf4 {[%emt 0:01:41]} Bf7 {[%emt 0:00:28]} 24. Nf3 {[%emt 0:01:42]} Rb8 {[%emt 0:01:21]} 25. Bc1 {[%emt 0:02:27]} Ng4 {[%emt 0:01:58]} 26. hxg4 {[%emt 0:02:37]} Bxf4 {[%emt 0:00:15]} 27. Nxd4 {[%emt 0:03:08]} cxd4 {[%emt 0:05:54]} 28. Qxf4 {[%emt 0:00:26]} Qd5 {[%emt 0:00:41]} 29. Qxf5+ {[%emt 0:05:06]} Qxf5 {[%emt 0:03:05]} 30. Rxf5 {[%emt 0:00:05]} Bd5 {[%emt 0:00:19]} 31. Rxf6 {[%emt 0:03:17]} Rbg8 {[%emt 0:00:05]} 32. g5 {[%emt 0:02:07]} Bxg2 {[%emt 0:00:47]} 33. Rf7+ {[%emt 0:00:05]} Kd6 {[%emt 0:00:22]} 34. Bf4+ {[%emt 0:00:28]} Kc5 {[%emt 0:00:08]} 35. Rb7 {[%emt 0:00:11]} a5 {[%emt 0:01:17]} 36. Re5+ {[%emt 0:01:07]} Bd5 {[%emt 0:00:28]} 37. a3 {[%emt 0:02:00]} Rf8 {[%emt 0:01:17]} 38. Rf5 {[%emt 0:01:06]} a4 {[%emt 0:00:14]} 39. b4+ {[%emt 0:00:03]} axb3 {[%emt 0:00:05]} 40. cxb3 {[%emt 0:00:00]} Rxf5 {[%emt 0:00:00]} 41. b4# {[%emt 0:00:05]} 1-0

[Event "XIX Najdorf Memorial 2019"]
[Site "Warsaw"]
[Date "2019.07.09"]
[Round "4.32"]
[White "Zochowski, Kacper"]
[Black "Jarocka, Liwia"]
[Result "1-0"]
[ECO "A20"]
[WhiteElo "2251"]
[BlackElo "2102"]
[Annotator "NA"]
[PlyCount "119"]
[EventDate "2019.07.06"]
[EventType "swiss"]
[EventCountry "POL"]
[SourceTitle "playchess.com"]
[Source "ChessBase"]
[SourceQuality "1"]
[TimeControl "40/5400+30:1800+30"]

1. c4 {[%emt 0:06:02]} e5 {[%emt 0:00:00]} 2. g3 {[%emt 0:00:13]} Nc6 {[%emt 0:00:10]} 3. Bg2 {[%emt 0:00:27]} f5 {[%emt 0:00:20]} 4. d3 {[%emt 0:10:19]} Nf6 {[%emt 0:02:20]} 5. Nf3 {[%emt 0:04:45]} Bb4+ {[%emt 0:08:30]} 6. Nc3 {[%emt 0:05:32]} Bxc3+ {[%emt 0:00:59]} 7. bxc3 {[%emt 0:00:03]} d6 {[%emt 0:00:32]} 8. Bg5 {[%emt 0:12:22]} O-O {[%emt 0:01:14]} 9. O-O {[%emt 0:05:30]} Qe8 {[%emt 0:01:16]} 10. Ne1 {[%emt 0:06:07]} f4 {[%emt 0:04:30]} 11. e3 {[%emt 0:05:59]} h6 {[%emt 0:25:12]} 12. Bxf6 {[%emt 0:02:41]} Rxf6 {[%emt 0:02:52]} 13. Rb1 {[%emt 0:05:31]} Rb8 {[%emt 0:06:59]} 14. Qe2 {[%emt 0:03:56]} fxg3 {[%emt 0:06:56]} 15. fxg3 {[%emt 0:02:14]} Rxf1+ {[%emt 0:00:18]} 16. Qxf1 {[%emt 0:01:07]} Ne7 {[%emt 0:00:36]} 17. Nc2 {[%emt 0:11:26]} c6 {[%emt 0:05:20]} 18. e4 {[%emt 0:03:02]} Be6 {[%emt 0:01:24]} 19. Bh3 {[%emt 0:00:34]} Qd7 {[%emt 0:01:02]} 20. Bxe6+ {[%emt 0:00:13]} Qxe6 {[%emt 0:00:02]} 21. Qe2 {[%emt 0:04:01]} b6 {[%emt 0:00:52]} 22. Ne3 {[%emt 0:02:31]} Rf8 {[%emt 0:00:34]} 23. a4 {[%emt 0:00:28]} g6 {[%emt 0:08:56]} 24. Kg2 {[%emt 0:00:17]} Kg7 {[%emt 0:00:55]} 25. Qg4 {[%emt 0:01:11]} Qxg4 {[%emt 0:00:27]} 26. Nxg4 {[%emt 0:00:02]} Nc8 {[%emt 0:00:47]} 27. Ne3 {[%emt 0:00:58]} Rf7 {[%emt 0:00:47]} 28. Nc2 {[%emt 0:00:12]} Rc7 {[%emt 0:01:10]} 29. Kf3 {[%emt 0:00:07]} Ne7 {[%emt 0:03:16]} 30. Nb4 {[%emt 0:00:39]} Ng8 {[%emt 0:02:42]} 31. Ke2 {[%emt 0:02:24]} Nf6 {[%emt 0:00:20]} 32. Ra1 {[%emt 0:00:39]} c5 {[%emt 0:07:31]} 33. Nc2 {[%emt 0:00:13]} Rf7 {[%emt 0:00:37]} 34. Ne3 {[%emt 0:00:25]} h5 {[%emt 0:01:04]} 35. a5 {[%emt 0:03:11]} bxa5 {[%emt 0:01:32]} 36. Rxa5 {[%emt 0:01:02]} Rb7 {[%emt 0:02:22]} 37. Ra6 {[%emt 0:01:02]} Rd7 {[%emt 0:01:17]} 38. Nc2 {[%emt 0:00:33]} Ne8 {[%emt 0:01:21]} 39. Na3 {[%emt 0:00:14]} Kf6 {[%emt 0:00:27]} 40. Nb5 {[%emt 0:00:00]} Ke7 {[%emt 0:00:00]} 41. Nxa7 {[%emt 0:05:12]} Nf6 {[%emt 0:02:57]} 42. Nb5 {[%emt 0:03:17]} Ng4 {[%emt 0:01:21]} 43. h3 {[%emt 0:01:08]} Nf6 {[%emt 0:00:08]} 44. Ra8 {[%emt 0:00:47]} Ke6 {[%emt 0:00:43]} 45. Ke3 {[%emt 0:00:49]} Nh7 {[%emt 0:02:01]} 46. Ra6 {[%emt 0:02:05]} Ng5 {[%emt 0:00:15]} 47. h4 {[%emt 0:00:42]} Nf7 {[%emt 0:00:39]} 48. d4 {[%emt 0:00:35]} cxd4+ {[%emt 0:00:49]} 49. cxd4 {[%emt 0:00:26]} exd4+ {[%emt 0:00:59]} 50. Kxd4 {[%emt 0:02:21]} Ke7 {[%emt 0:01:10]} 51. Kd5 {[%emt 0:00:42]} Rd8 {[%emt 0:00:42]} 52. Ra7+ {[%emt 0:01:40]} Rd7 {[%emt 0:00:51]} 53. Ra8 {[%emt 0:00:09]} Nd8 {[%emt 0:00:26]} 54. Ra7 {[%emt 0:04:19]} Rxa7 {[%emt 0:00:31]} 55. Nxa7 {[%emt 0:00:13]} Kd7 {[%emt 0:00:54]} 56. e5 {[%emt 0:00:39]} Nb7 {[%emt 0:02:02]} 57. Nc6 {[%emt 0:02:00]} Kc7 {[%emt 0:00:24]} 58. e6 {[%emt 0:03:04]} Nc5 {[%emt 0:00:13]} 59. Nd4 {[%emt 0:00:56]} Nd3 {[%emt 0:00:20]} 60. Nb5+ {[%emt 0:00:08]} 1-0

[Event "XIX Najdorf Memorial 2019"]
[Site "Warsaw"]
[Date "2019.07.10"]
[Round "5.1"]
[White "Shevchenko, Kirill"]
[Black "Fedorov, Alexei"]
[Result "1/2-1/2"]
[ECO "A45"]
[WhiteElo "2536"]
[BlackElo "2551"]
[Annotator "ChessBase"]
[PlyCount "128"]
[EventDate "2019.07.06"]
[EventType "swiss"]
[EventCountry "POL"]
[SourceTitle "playchess.com"]
[Source "ChessBase"]
[SourceQuality "1"]
[TimeControl "40/5400+30:1800+30"]

1. d4 {[%emt 0:00:00]} Nf6 {[%emt 0:00:00]} 2. Bf4 {[%emt 0:00:00]} c5 {[%emt 0:01:04]} 3. e3 {[%emt 0:00:00]} Nd5 {[%emt 0:00:32]} 4. Bg3 {[%emt 0:01:57]} Qb6 {[%emt 0:00:12]} 5. Nc3 {[%emt 0:07:31]} Nxc3 {[%emt 0:00:20]} 6. bxc3 {[%emt 0:00:03]} Qa5 {[%emt 0:02:03]} 7. Qd2 {[%emt 0:03:22]} d6 {[%emt 0:01:14]} 8. Nf3 {[%emt 0:04:45]} g6 {[%emt 0:02:33]} 9. Bc4 {[%emt 0:15:42]} Bg7 {[%emt 0:01:54]} 10. O-O {[%emt 0:02:36]} Nd7 {[%emt 0:02:23]} 11. Rfe1 {[%emt 0:07:56]} Nb6 {[%emt 0:06:46]} 12. Bf1 {[%emt 0:03:35]} O-O {[%emt 0:07:32]} 13. a4 {[%emt 0:13:48]} Bd7 {[%emt 0:15:03]} 14. Reb1 {[%emt 0:03:36]} Rfc8 {[%emt 0:02:13]} 15. Bh4 {[%emt 0:09:09]} Kf8 {[%emt 0:02:01]} 16. Bb5 {[%emt 0:04:47]} Rab8 {[%emt 0:02:57]} 17. Qe1 {[%emt 0:02:32]} h6 {[%emt 0:03:07]} 18. Bg3 {[%emt 0:03:00]} a6 {[%emt 0:06:45]} 19. Bxd7 {[%emt 0:01:06]} Nxd7 {[%emt 0:00:06]} 20. Rb3 {[%emt 0:01:17]} Rc7 {[%emt 0:08:29]} 21. Qb1 {[%emt 0:06:54]} Nf6 {[%emt 0:02:07]} 22. c4 {[%emt 0:03:47]} cxd4 {[%emt 0:08:28]} 23. exd4 {[%emt 0:00:06]} Ne4 {[%emt 0:00:55]} 24. c5 {[%emt 0:02:00]} Nxg3 {[%emt 0:00:39]} 25. cxd6 {[%emt 0:00:21]} Ne2+ {[%emt 0:02:21]} 26. Kf1 {[%emt 0:00:00]} exd6 {[%emt 0:00:44]} 27. Kxe2 {[%emt 0:00:01]} Qd5 {[%emt 0:02:38]} 28. Ra2 {[%emt 0:01:37]} Bxd4 {[%emt 0:01:11]} 29. Nxd4 {[%emt 0:02:03]} Qxd4 {[%emt 0:00:07]} 30. Kf1 {[%emt 0:00:13]} Re8 {[%emt 0:03:29]} 31. Rd3 {[%emt 0:00:05]} Qc4 {[%emt 0:01:18]} 32. Qb3 {[%emt 0:01:38]} Qf4 {[%emt 0:02:13]} 33. g3 {[%emt 0:00:32]} Qc1+ {[%emt 0:00:57]} 34. Kg2 {[%emt 0:00:00]} Re1 {[%emt 0:00:16]} 35. Qb2 {[%emt 0:00:28]} Qxb2 {[%emt 0:01:03]} 36. Rxb2 {[%emt 0:00:00]} Re2 {[%emt 0:01:56]} 37. Rxd6 {[%emt 0:01:04]} Rcxc2 {[%emt 0:00:33]} 38. Rxc2 {[%emt 0:00:02]} Rxc2 {[%emt 0:00:06]} 39. Rb6 {[%emt 0:00:56]} Rc7 {[%emt 0:00:15]} 40. Kf3 {[%emt 0:00:00]} Re7 {[%emt 0:00:00]} 41. g4 {[%emt 0:14:12]} Rc7 {[%emt 0:05:35]} 42. Kg3 {[%emt 0:01:40]} Rc4 {[%emt 0:00:27]} 43. Rxb7 {[%emt 0:00:53]} Rxa4 {[%emt 0:00:06]} 44. Rb6 {[%emt 0:02:52]} Ra1 {[%emt 0:00:30]} 45. h4 {[%emt 0:02:55]} a5 {[%emt 0:00:11]} 46. Ra6 {[%emt 0:01:44]} a4 {[%emt 0:00:17]} 47. h5 {[%emt 0:01:10]} gxh5 {[%emt 0:03:00]} 48. gxh5 {[%emt 0:00:07]} a3 {[%emt 0:00:22]} 49. Kf4 {[%emt 0:00:41]} a2 {[%emt 0:02:29]} 50. Kf5 {[%emt 0:00:58]} Kg7 {[%emt 0:00:18]} 51. f4 {[%emt 0:01:43]} Rh1 {[%emt 0:00:10]} 52. Rxa2 {[%emt 0:00:01]} Rxh5+ {[%emt 0:00:06]} 53. Kg4 {[%emt 0:00:08]} Rh1 {[%emt 0:00:07]} 54. Kf5 {[%emt 0:00:43]} Rh5+ {[%emt 0:01:03]} 55. Kg4 {[%emt 0:00:01]} Rb5 {[%emt 0:00:07]} 56. Rh2 {[%emt 0:04:32]} f5+ {[%emt 0:06:29]} 57. Kh4 {[%emt 0:00:12]} Rb4 {[%emt 0:00:16]} 58. Rf2 {[%emt 0:00:06]} Rb1 {[%emt 0:00:15]} 59. Ra2 {[%emt 0:01:58]} Rh1+ {[%emt 0:01:19]} 60. Kg3 {[%emt 0:00:03]} Rg1+ {[%emt 0:00:06]} 61. Kf3 {[%emt 0:00:52]} h5 {[%emt 0:01:30]} 62. Ra7+ {[%emt 0:00:25]} Kh6 {[%emt 0:00:39]} 63. Ra6+ {[%emt 0:00:24]} Rg6 {[%emt 0:00:23]} 64. Rxg6+ {[%emt 0:00:09]} Kxg6 1/2-1/2

[Event "XIX Najdorf Memorial 2019"]
[Site "Warsaw"]
[Date "2019.07.10"]
[Round "5.1"]
[White "Kanarek, Marcel"]
[Black "Baum, Jonasz"]
[Result "1-0"]
[ECO "B19"]
[WhiteElo "2493"]
[BlackElo "2308"]
[Annotator "ChessBase"]
[PlyCount "73"]
[EventDate "2019.07.06"]
[EventType "swiss"]
[EventCountry "POL"]
[SourceTitle "playchess.com"]
[Source "ChessBase"]
[SourceQuality "1"]
[TimeControl "40/5400+30:1800+30"]

1. e4 {[%emt 0:00:00]} c6 {[%emt 0:00:00]} 2. d4 {[%emt 0:00:00]} d5 {[%emt 0:00:00]} 3. Nc3 {[%emt 0:00:00]} dxe4 {[%emt 0:00:00]} 4. Nxe4 {[%emt 0:00:00]} Bf5 {[%emt 0:00:00]} 5. Ng3 {[%emt 0:00:00]} Bg6 {[%emt 0:00:00]} 6. h4 {[%emt 0:00:00]} h6 {[%emt 0:00:01]} 7. Nf3 {[%emt 0:00:00]} Nd7 {[%emt 0:00:08]} 8. h5 {[%emt 0:00:00]} Bh7 {[%emt 0:00:04]} 9. Bd3 {[%emt 0:00:00]} Bxd3 {[%emt 0:00:05]} 10. Qxd3 {[%emt 0:00:02]} e6 {[%emt 0:00:12]} 11. Bd2 {[%emt 0:00:10]} Ngf6 {[%emt 0:00:06]} 12. O-O-O {[%emt 0:00:08]} a5 {[%emt 0:00:05]} 13. Kb1 {[%emt 0:04:21]} a4 {[%emt 0:00:10]} 14. Rde1 {[%emt 0:08:51]} Be7 {[%emt 0:00:50]} 15. Nh4 {[%emt 0:24:54]} O-O {[%emt 0:01:54]} 16. Ngf5 {[%emt 0:17:56]} exf5 {[%emt 0:17:32]} 17. Nxf5 {[%emt 0:01:28]} Nd5 {[%emt 0:02:10]} 18. c4 {[%emt 0:04:59]} Bf6 {[%emt 0:00:28]} 19. cxd5 {[%emt 0:01:45]} cxd5 {[%emt 0:00:18]} 20. Bb4 {[%emt 0:27:16]} Re8 {[%emt 0:01:08]} 21. Rxe8+ {[%emt 0:00:12]} Qxe8 {[%emt 0:00:02]} 22. Re1 {[%emt 0:00:12]} Qd8 {[%emt 0:03:06]} 23. Qg3 {[%emt 0:00:40]} Qb6 {[%emt 0:07:10]} 24. a3 {[%emt 0:03:06]} Kh8 {[%emt 0:01:27]} 25. Nd6 {[%emt 0:03:18]} Kg8 {[%emt 0:01:08]} 26. Nf5 {[%emt 0:00:13]} Kh8 {[%emt 0:00:02]} 27. Re7 {[%emt 0:01:55]} Qc6 {[%emt 0:03:23]} 28. Rxf7 {[%emt 0:00:40]} Rc8 {[%emt 0:00:22]} 29. Qd3 {[%emt 0:01:26]} Qc1+ {[%emt 0:03:14]} 30. Ka2 {[%emt 0:00:01]} Rc2 {[%emt 0:00:16]} 31. Bc3 {[%emt 0:00:29]} Nc5 {[%emt 0:00:11]} 32. Qb5 {[%emt 0:01:18]} Kh7 {[%emt 0:01:37]} 33. Qxc5 {[%emt 0:00:33]} b6 {[%emt 0:00:39]} 34. Qb4 {[%emt 0:00:33]} Rxf2 {[%emt 0:01:12]} 35. Rxf6 {[%emt 0:00:25]} Rf1 {[%emt 0:00:11]} 36. Rxh6+ {[%emt 0:00:13]} Kg8 {[%emt 0:00:05]} 37. Rh8+ {[%emt 0:00:14]} 1-0

[Event "XIX Najdorf Memorial 2019"]
[Site "Warsaw"]
[Date "2019.07.10"]
[Round "5.2"]
[White "Harsha Bharathakoti"]
[Black "Bebel, Arkadiusz"]
[Result "1-0"]
[ECO "B07"]
[WhiteElo "2486"]
[BlackElo "2290"]
[Annotator "ChessBase"]
[PlyCount "61"]
[EventDate "2019.07.06"]
[EventType "swiss"]
[EventCountry "POL"]
[SourceTitle "playchess.com"]
[Source "ChessBase"]
[SourceQuality "1"]
[TimeControl "40/5400+30:1800+30"]

1. e4 d6 2. d4 Nf6 3. Nc3 Nbd7 4. Nf3 e5 5. Be2 Be7 6. g4 h6 7. Rg1 c6 8. Be3 Qa5 9. Qd2 b5 10. Bd3 b4 11. Ne2 d5 12. Nxe5 Nxe5 13. dxe5 Nxe4 14. Bxe4 dxe4 15. Nd4 Bd7 16. e6 Bxe6 17. Nxc6 Qc7 18. Nxe7 Qxe7 19. Qd4 O-O 20. g5 hxg5 21. Rxg5 f6 22. Rc5 Rad8 23. Qxe4 Rfe8 24. Rd1 Rxd1+ 25. Kxd1 Qd6+ 26. Kc1 Qa6 27. b3 Qxa2 28. Rc8 Kf7 29. Rxe8 Qa1+ 30. Kd2 Qc3+ 31. Ke2 1-0

[Event "XIX Najdorf Memorial 2019"]
[Site "Warsaw"]
[Date "2019.07.10"]
[Round "5.3"]
[White "Yuffa, Daniil"]
[Black "Heberla, Bartlomiej"]
[Result "0-1"]
[ECO "D30"]
[WhiteElo "2582"]
[BlackElo "2534"]
[Annotator "ChessBase"]
[PlyCount "44"]
[EventDate "2019.07.06"]
[EventType "swiss"]
[EventCountry "POL"]
[SourceTitle "playchess.com"]
[Source "ChessBase"]
[SourceQuality "1"]
[TimeControl "40/5400+30:1800+30"]

1. d4 {[%emt 0:00:00]} d5 {[%emt 0:06:43]} 2. c4 {[%emt 0:00:00]} e6 {[%emt 0:00:03]} 3. Nf3 {[%emt 0:00:00]} a6 {[%emt 0:00:04]} 4. Bg5 {[%emt 0:00:37]} Be7 {[%emt 0:00:06]} 5. Bxe7 {[%emt 0:00:06]} Qxe7 {[%emt 0:00:02]} 6. Nbd2 {[%emt 0:00:07]} Nf6 {[%emt 0:00:06]} 7. g3 {[%emt 0:00:04]} O-O {[%emt 0:01:27]} 8. Bg2 {[%emt 0:00:07]} c5 {[%emt 0:04:11]} 9. cxd5 {[%emt 0:07:37]} exd5 {[%emt 0:00:11]} 10. dxc5 {[%emt 0:00:18]} Qxc5 {[%emt 0:00:02]} 11. O-O {[%emt 0:00:54]} Nc6 {[%emt 0:00:05]} 12. Nb3 {[%emt 0:04:13]} Qb6 {[%emt 0:06:30]} 13. Qc1 {[%emt 0:14:15]} Re8 {[%emt 0:14:10]} 14. e3 {[%emt 0:01:21]} Ne4 {[%emt 0:01:10]} 15. Rd1 {[%emt 0:07:16]} Bg4 {[%emt 0:00:47]} 16. Qc2 {[%emt 0:23:14]} Ne5 {[%emt 0:05:37]} 17. Nxe5 {[%emt 0:04:28]} Bxd1 {[%emt 0:00:31]} 18. Nd7 {[%emt 0:00:03]} Qxb3 {[%emt 0:02:08]} 19. Qxd1 {[%emt 0:01:48]} Qb5 {[%emt 0:06:48]} 20. Qg4 {[%emt 0:00:44]} h5 {[%emt 0:01:35]} 21. Qf5 {[%emt 0:01:21]} Nd6 {[%emt 0:05:12]} 22. a4 {[%emt 0:03:01]} Qc6 {[%emt 0:03:34]} 0-1

[Event "XIX Najdorf Memorial 2019"]
[Site "Warsaw"]
[Date "2019.07.10"]
[Round "5.3"]
[White "Jarmula, Lukasz"]
[Black "Szustakowski, Antoni"]
[Result "1-0"]
[ECO "D45"]
[WhiteElo "2480"]
[BlackElo "2279"]
[Annotator "ChessBase"]
[PlyCount "81"]
[EventDate "2019.07.06"]
[EventType "swiss"]
[EventCountry "POL"]
[SourceTitle "playchess.com"]
[Source "ChessBase"]
[SourceQuality "1"]
[TimeControl "40/5400+30:1800+30"]

1. d4 {[%emt 0:00:00]} d5 {[%emt 0:00:00]} 2. c4 {[%emt 0:00:00]} e6 {[%emt 0:00:00]} 3. Nf3 {[%emt 0:00:00]} c6 {[%emt 0:00:00]} 4. e3 {[%emt 0:00:12]} Nf6 {[%emt 0:00:00]} 5. Nc3 {[%emt 0:00:58]} a6 {[%emt 0:00:00]} 6. c5 Nbd7 7. Bd2 b6 8. cxb6 {[%emt 0:09:33]} Nxb6 9. Bd3 c5 10. O-O Bb7 11. Qe2 cxd4 12. exd4 Bd6 13. Ne5 O-O 14. Bg5 Be7 15. Rac1 a5 16. Nb5 h6 17. Bf4 Nc4 18. Nxc4 dxc4 19. Bxc4 Rc8 20. Be5 Qb6 21. a4 Rfd8 22. b3 Bc6 23. Rfd1 Qb7 24. f3 Qb6 25. Kh1 Nd7 26. Bg3 Nf8 27. Bf2 Qb8 28. Be1 Qa8 29. Bg3 Rd7 30. Bd3 Bxb5 31. axb5 Rxc1 32. Rxc1 Rxd4 33. Bf2 Rd8 34. Be4 Qb8 35. b6 Bg5 36. Rd1 f5 37. Bc6 Rc8 38. Qb5 Bf4 39. g3 Bd6 40. b7 Rd8 41. Bb6 1-0